bitfinex-derivatives/quotes_BTCF0:USTF0_20251002
["timestamp","ask_amount","ask_price","bid_price","bid_amount"]
[1759413516830,1.19387619,119720.0,119710.0,0.4811582]
[1759413517638,0.42931619,119720.0,119710.0,0.4811582]
[1759413517832,1.19387619,119720.0,119710.0,0.39767]
[1759413518136,1.19387619,119720.0,119710.0,0.4831588]
[1759413518137,1.19383619,119720.0,119710.0,0.4831588]
[1759413520038,0.34583449,119720.0,119710.0,0.4831588]
[1759413520239,0.1058014,119720.0,119710.0,0.4831588]
[1759413520435,0.8079614,119720.0,119710.0,0.4831588]
[1759413520734,0.8702814,119720.0,119710.0,0.4831588]
[1759413521536,1.19379589,119720.0,119710.0,0.4831588]
[1759413521731,0.8702814,119720.0,119710.0,0.4831588]
[1759413521927,1.19379589,119720.0,119710.0,0.4831588]
[1759413522331,1.19379589,119720.0,119710.0,0.39967]
[1759413523136,1.20685589,119720.0,119710.0,0.38591]
[1759413523535,1.20685589,119720.0,119710.0,0.3628]
[1759413523833,1.20685589,119720.0,119710.0,0.38591]
[1759413524140,1.19328501,119720.0,119710.0,0.38591]
[1759413525439,1.59328501,119720.0,119710.0,0.002]
[1759413525842,1.26977052,119720.0,119710.0,0.002]
[1759413526041,1.59328501,119720.0,119710.0,0.002]
[1759413527034,2.2775995,119720.0,119710.0,0.002]
[1759413527330,0.1058084,119710.0,119700.0,0.3608]
[1759413527535,0.75283738,119710.0,119700.0,0.3608]
[1759413527735,0.1058154,119700.0,119690.0,0.47214294]
[1759413527935,1.50718171,119700.0,119690.0,0.47214294]
[1759413528136,1.50718171,119700.0,119690.0,0.55564524]
[1759413528739,1.50718171,119700.0,119690.0,0.54188524]
[1759413528940,1.57908682,119700.0,119690.0,0.43527294]
[1759413529144,1.57908682,119700.0,119690.0,0.43627294]
[1759413529639,1.57904682,119700.0,119690.0,0.43627294]
[1759413529843,1.57904682,119700.0,119690.0,0.07547294]
[1759413530039,1.97904682,119700.0,119690.0,0.00105999]
[1759413530247,2.66445742,119700.0,119690.0,0.00105999]
[1759413531342,2.66445742,119700.0,119690.0,5.999e-05]
[1759413531548,2.66445742,119700.0,119670.0,0.37456]
[1759413531549,0.1128789,119680.0,119670.0,0.37456]
[1759413531845,1.20107876,119680.0,119670.0,0.3608]
[1759413532046,0.1063859,119670.0,119660.0,0.39746]
[1759413532442,0.10647625,119670.0,119660.0,0.39746]
[1759413532640,0.75423597,119670.0,119660.0,0.39746]
[1759413532842,1.51859597,119670.0,119660.0,0.39746]
[1759413533639,1.51859597,119670.0,119660.0,0.40746]
[1759413533841,1.5268596,119670.0,119660.0,0.40746]
[1759413534043,1.5268196,119670.0,119660.0,0.40746]
[1759413534549,1.5268196,119670.0,119660.0,0.39746]
[1759413534746,1.5268196,119670.0,119660.0,0.40746]
[1759413534942,1.5268596,119670.0,119660.0,0.40746]
[1759413535542,0.75423597,119670.0,119660.0,0.40746]
[1759413535747,1.51855597,119670.0,119660.0,0.40746]
[1759413535947,0.75423597,119670.0,119660.0,0.40746]
[1759413536250,1.19467611,119670.0,119660.0,0.40746]
[1759413536543,1.51855597,119670.0,119660.0,0.40746]
[1759413536751,1.53147234,119670.0,119660.0,0.01]
[1759413537150,1.53147234,119670.0,119660.0,0.0329]
[1759413537447,1.52697234,119670.0,119660.0,0.0329]
[1759413538755,1.53147234,119670.0,119660.0,0.01]
[1759413538956,0.76715234,119670.0,119660.0,0.01]
[1759413539255,0.76715234,119670.0,119660.0,0.0329]
[1759413539454,1.53147234,119670.0,119660.0,0.0329]
[1759413540255,1.89227234,119670.0,119660.0,0.01]
[1759413541554,1.12795234,119670.0,119660.0,0.01]
[1759413541756,1.52697234,119670.0,119660.0,0.04672]
[1759413542150,1.52697234,119670.0,119660.0,0.0329]
[1759413542350,1.16715234,119670.0,119660.0,0.01]
[1759413542559,1.93143234,119670.0,119660.0,0.01]
[1759413542756,2.29223234,119670.0,119660.0,0.01]
[1759413543963,1.52795234,119670.0,119660.0,0.01]
[1759413544165,2.29227234,119670.0,119660.0,0.01]
[1759413544558,2.29223234,119670.0,119660.0,0.01]
[1759413547364,2.6161122,119670.0,119660.0,0.01]
[1759413548769,2.6160722,119670.0,119660.0,0.01]
[1759413549469,2.2160722,119670.0,119660.0,0.01]
[1759413549868,1.4518322,119670.0,119660.0,0.01]
[1759413550169,2.2160322,119670.0,119660.0,0.01]
[1759413550373,1.4518322,119670.0,119660.0,0.01]
[1759413550664,2.2160322,119670.0,119660.0,0.01]
[1759413550861,1.89215234,119670.0,119660.0,0.0329]
[1759413551369,2.2160322,119670.0,119660.0,0.01]
[1759413552260,2.6160322,119670.0,119660.0,0.01]
[1759413552868,0.1063996,119650.0,119640.0,0.03672]
[1759413553063,0.0835366,119640.0,119620.0,0.37462]
[1759413553269,1.50475282,119630.0,119620.0,0.39752]
[1759413553573,1.50475282,119630.0,119620.0,0.37462]
[1759413553767,1.50475282,119630.0,119620.0,0.01382]
[1759413554166,0.74059282,119630.0,119620.0,0.01382]
[1759413554374,0.8569931,119630.0,119620.0,0.03672]
[1759413554670,0.15895071,119630.0,119620.0,0.03672]
[1759413554876,1.24699057,119630.0,119620.0,0.39752]
[1759413555073,0.92311071,119630.0,119620.0,0.8810705]
[1759413555372,0.92311071,119630.0,119620.0,1.20495036]
[1759413555373,0.40742336,119630.0,119620.0,1.20495036]
[1759413555577,1.17158336,119630.0,119620.0,1.21895036]
[1759413555870,0.40742336,119630.0,119620.0,1.13539986]
[1759413556075,1.18767336,119630.0,119620.0,0.4950705]
[1759413556276,1.18767336,119630.0,119620.0,0.39752]
[1759413556481,1.18767336,119630.0,119620.0,0.40252]
[1759413556869,1.17158336,119630.0,119620.0,0.80995036]
[1759413557070,1.17158336,119630.0,119620.0,0.80495036]
[1759413557373,0.16723963,119650.0,119640.0,0.03672]
[1759413557676,0.40749971,119650.0,119640.0,1.20493636]
[1759413557879,9.035e-05,119650.0,119640.0,0.8810565]
[1759413558070,9.035e-05,119650.0,119640.0,1.52881622]
[1759413558685,0.00109035,119650.0,119640.0,1.52881622]
[1759413558869,0.00557039,119650.0,119640.0,1.52881622]
[1759413559075,0.23188,119660.0,119650.0,0.118314]
[1759413559374,0.0835205,119670.0,119660.0,0.0964326]
[1759413559375,1.17156036,119670.0,119660.0,0.0964326]
[1759413559675,0.40740036,119670.0,119660.0,0.4791126]
[1759413559874,0.40739226,119680.0,119670.0,0.03479]
[1759413560079,1.51148212,119680.0,119670.0,0.39559]
[1759413560280,1.53343293,119680.0,119670.0,0.39559]
[1759413560673,0.88567321,119680.0,119670.0,0.39559]
[1759413560873,1.53343293,119680.0,119670.0,0.39559]
[1759413561078,1.52034293,119680.0,119670.0,0.39559]
[1759413561386,1.53643293,119680.0,119670.0,0.39559]
[1759413561679,1.51148212,119680.0,119670.0,0.39559]
[1759413562481,1.51148212,119680.0,119670.0,0.4791056]
[1759413563280,0.74736212,119680.0,119670.0,0.4851056]
[1759413563482,0.32387986,119680.0,119670.0,1.20898546]
[1759413563980,1.17138776,119680.0,119670.0,1.20898546]
[1759413564374,1.08787986,119680.0,119670.0,1.20898546]
[1759413564574,1.08787986,119680.0,119670.0,1.21098546]
[1759413564775,0.32387986,119680.0,119670.0,1.22281693]
[1759413564977,1.08787986,119680.0,119670.0,1.22281693]
[1759413565282,1.17138776,119680.0,119670.0,1.22281693]
[1759413566974,1.51135762,119680.0,119670.0,0.89893707]
[1759413567282,1.51135762,119680.0,119670.0,0.81542147]
[1759413567477,1.83523748,119680.0,119670.0,0.41542147]
[1759413567883,1.83973748,119680.0,119670.0,0.01983147]
[1759413568482,2.20053748,119680.0,119670.0,0.01983147]
[1759413568677,2.59603748,119680.0,119670.0,0.01983147]
[1759413568983,2.58601183,119680.0,119670.0,0.008]
[1759413570076,0.74735762,119680.0,119670.0,0.4867453]
[1759413570277,1.51619762,119680.0,119670.0,0.39523]
[1759413570786,1.51619762,119680.0,119670.0,0.4787453]
[1759413570976,1.51119762,119680.0,119670.0,0.4787453]
[1759413571281,1.51219762,119680.0,119670.0,0.4787453]
[1759413571978,1.51119762,119680.0,119670.0,0.4787453]
[1759413572181,1.51219762,119680.0,119670.0,0.39523]
[1759413572383,1.51219762,119680.0,119670.0,0.03443]
[1759413573484,1.51219762,119680.0,119670.0,0.39523]
[1759413573884,1.51219762,119680.0,119670.0,0.03443]
[1759413574680,0.0996053,119670.0,119660.0,0.03409]
[1759413574880,0.74736502,119670.0,119660.0,0.03409]
[1759413576185,0.74736502,119670.0,119660.0,0.4784123]
[1759413576385,1.18720516,119670.0,119660.0,0.4824123]
[1759413576685,1.51108502,119670.0,119660.0,0.4824123]
[1759413576886,1.18720516,119670.0,119660.0,0.39889]
[1759413577083,1.18720516,119670.0,119660.0,0.39489]
[1759413577284,1.18820516,119670.0,119660.0,0.39489]
[1759413577684,1.18820516,119670.0,119660.0,0.4784123]
[1759413577685,0.42448516,119670.0,119660.0,0.4784123]
[1759413577885,1.18820516,119670.0,119660.0,0.4784123]
[1759413578079,1.18720516,119670.0,119660.0,0.4804123]
[1759413578889,1.18720516,119670.0,119660.0,0.4784123]
[1759413579090,0.33996986,119670.0,119660.0,0.39689]
[1759413579386,0.32387986,119680.0,119660.0,0.39689]
[1759413579589,0.33996986,119680.0,119670.0,0.39523]
[1759413579892,0.45146858,119700.0,119690.0,0.03443]
[1759413580190,1.5021083,119700.0,119690.0,0.03443]
[1759413580688,0.85434858,119700.0,119690.0,0.03443]
[1759413580888,1.5021083,119700.0,119690.0,0.03443]
[1759413581086,1.82598816,119700.0,119690.0,0.03443]
[1759413581282,2.59234816,119700.0,119680.0,0.37405]
[1759413581487,0.01609,119690.0,119680.0,0.37405]
[1759413581687,0.66384972,119690.0,119680.0,0.37405]
[1759413581891,0.66384972,119690.0,119680.0,0.39523]
[1759413582993,0.66784972,119690.0,119680.0,0.39523]
[1759413583894,1.02464972,119690.0,119670.0,0.01325]
[1759413584095,1.42744972,119680.0,119670.0,0.03443]
[1759413584992,1.42744972,119680.0,119670.0,0.01325]
[1759413585188,1.75132958,119680.0,119670.0,0.01325]
[1759413585389,1.75132958,119680.0,119670.0,0.03443]
[1759413585792,1.75132958,119680.0,119670.0,0.01325]
[1759413585998,1.42744972,119680.0,119670.0,0.01325]
[1759413586397,1.42848972,119680.0,119670.0,0.03443]
[1759413587488,1.42748972,119680.0,119670.0,0.03443]
[1759413587691,1.75236958,119680.0,119660.0,0.43304936]
[1759413587893,0.66384972,119670.0,119660.0,0.45422936]
[1759413588092,0.65027345,119670.0,119660.0,0.45422936]
[1759413588292,0.65027345,119670.0,119660.0,0.39489]
[1759413588896,0.33996986,119670.0,119660.0,0.39489]
[1759413589097,0.33996986,119670.0,119660.0,0.45443037]
[1759413589292,0.33996986,119670.0,119660.0,0.45643037]
[1759413589293,1.10348986,119670.0,119660.0,0.45643037]
[1759413589497,1.42736972,119670.0,119660.0,0.45643037]
[1759413589801,1.42736972,119670.0,119660.0,0.45443037]
[1759413590003,1.51088172,119670.0,119660.0,0.45843037]
[1759413590591,1.51188172,119670.0,119660.0,0.45443037]
[1759413590796,1.51188172,119670.0,119660.0,0.86182913]
[1759413590797,1.17287186,119670.0,119660.0,0.86182913]
[1759413590999,1.17287186,119670.0,119660.0,0.53794927]
[1759413591401,1.17287186,119670.0,119660.0,0.86182913]
[1759413591804,0.40939186,119670.0,119660.0,0.53794927]
[1759413592002,1.17283186,119670.0,119660.0,0.53794927]
[1759413592196,1.17082714,119670.0,119660.0,0.53994927]
[1759413594504,1.17086714,119670.0,119660.0,0.53994927]
[1759413594805,1.18695714,119670.0,119660.0,0.53994927]
[1759413595208,0.40742714,119670.0,119660.0,0.53994927]
[1759413595504,1.17693206,119670.0,119660.0,0.39689]
[1759413595701,1.17693206,119670.0,119660.0,0.55482185]
[1759413595909,1.17693206,119670.0,119660.0,0.47130295]
[1759413596201,1.17693206,119670.0,119660.0,0.39689]
[1759413596402,0.85305692,119670.0,119660.0,0.39689]
[1759413596705,1.17693206,119670.0,119660.0,0.39689]
[1759413597005,1.17693206,119670.0,119660.0,0.03609]
[1759413597205,1.5008072,119670.0,119660.0,0.03609]
[1759413597604,1.5008072,119670.0,119660.0,0.39689]
[1759413597996,1.17693206,119670.0,119660.0,0.4804089]
[1759413598703,1.5008072,119670.0,119660.0,0.39689]
[1759413599208,0.7373672,119670.0,119660.0,0.39689]
[1759413599397,1.5007272,119670.0,119660.0,0.39689]
[1759413600302,1.5006872,119670.0,119660.0,0.39689]
[1759413600504,1.5006872,119670.0,119660.0,0.03609]
[1759413600696,2.2614872,119670.0,119660.0,0.002]
[1759413600900,2.24791085,119670.0,119660.0,0.002]
[1759413602102,1.48459085,119670.0,119660.0,0.002]
[1759413602408,2.24791085,119670.0,119660.0,0.002]
[1759413602707,2.25191085,119670.0,119660.0,0.002]
[1759413602910,0.099609,119660.0,119650.0,0.4792257]
[1759413603101,0.099609,119660.0,119650.0,0.37405]
[1759413603306,0.099609,119660.0,119650.0,0.4792259]
[1759413603507,1.18676414,119660.0,119650.0,0.4792259]
[1759413604102,1.18676414,119660.0,119650.0,0.3957]
[1759413604301,0.42348414,119660.0,119650.0,0.3957]
[1759413604502,1.18776414,119660.0,119650.0,0.3957]
[1759413604707,1.25335081,119660.0,119650.0,0.3957]
[1759413605207,1.25335081,119660.0,119650.0,0.4792259]
[1759413605208,0.40755181,119660.0,119650.0,0.4792259]
[1759413605409,0.90786567,119660.0,119650.0,0.4792259]
[1759413605709,1.23174081,119660.0,119650.0,0.4792259]
[1759413606210,0.32387514,119660.0,119650.0,0.8792259]
[1759413606405,1.08459414,119660.0,119650.0,0.8792259]
[1759413606604,1.08459414,119660.0,119650.0,0.8812259]
[1759413606909,1.08459414,119660.0,119650.0,0.8832259]
[1759413606910,0.40739414,119660.0,119650.0,0.8832259]
[1759413607208,1.17063414,119660.0,119650.0,0.8832259]
[1759413607399,0.42348414,119660.0,119650.0,0.8832259]
[1759413607601,1.11396414,119660.0,119650.0,0.8842259]
[1759413607804,1.10393798,119660.0,119650.0,0.8842259]
[1759413608203,1.10393798,119660.0,119650.0,0.8792259]
[1759413608402,1.10393798,119660.0,119650.0,0.8842259]
[1759413608805,1.10393798,119660.0,119650.0,0.8792259]
[1759413609006,1.10393798,119660.0,119650.0,0.8842259]
[1759413609208,0.846759,119660.0,119650.0,0.8842259]
[1759413609515,1.17063414,119660.0,119650.0,0.8842259]
[1759413609709,0.32387514,119660.0,119650.0,0.8842259]
[1759413610106,0.0835585,119670.0,119660.0,0.118669]
[1759413610107,4e-05,119670.0,119660.0,0.118669]
[1759413610304,4e-05,119670.0,119660.0,0.80334414]
[1759413610610,0.22453333,119700.0,119680.0,0.083504]
[1759413610810,0.54840847,119700.0,119690.0,0.39595]
[1759413611003,0.54000644,119700.0,119690.0,0.39595]
[1759413611409,0.13264,119700.0,119690.0,0.479448]
[1759413611613,0.45651514,119700.0,119690.0,0.479448]
[1759413611811,0.13264,119700.0,119690.0,1.20332314]
[1759413612110,0.13664,119700.0,119690.0,0.879448]
[1759413612313,0.00404,119700.0,119690.0,0.879448]
[1759413612506,4e-05,119700.0,119690.0,0.879448]
[1759413612709,0.40740614,119700.0,119690.0,0.879448]
[1759413613213,4e-05,119700.0,119690.0,0.89163016]
[1759413613613,0.004,119700.0,119690.0,0.89163016]
[1759413613811,0.00399056,119700.0,119690.0,1.2155053]
[1759413614916,0.00399056,119700.0,119690.0,0.89163016]
[1759413615118,0.00399056,119700.0,119690.0,1.2155053]
[1759413615417,0.75145194,119700.0,119690.0,0.4675521]
[1759413615624,0.10370166,119700.0,119690.0,0.4675521]
[1759413615819,0.4275768,119700.0,119690.0,0.5510502]
[1759413616016,0.10370166,119700.0,119690.0,0.5510502]
[1759413616323,0.4275768,119700.0,119690.0,0.49163026]
[1759413618424,0.4275768,119700.0,119690.0,0.40813216]
[1759413618729,0.4275768,119700.0,119690.0,0.49163026]
[1759413619221,0.4275768,119700.0,119690.0,0.40813216]
[1759413619525,1.1070457,119700.0,119690.0,0.49163026]
[1759413619721,1.1905368,119700.0,119690.0,0.40813216]
[1759413620119,0.86666166,119700.0,119690.0,0.40813216]
[1759413620620,1.1905368,119700.0,119690.0,0.40813216]
[1759413621824,1.1905368,119700.0,119690.0,0.49163026]
[1759413623223,1.1905368,119700.0,119690.0,0.40813216]
[1759413623526,1.51441194,119700.0,119690.0,0.40813216]
[1759413623824,1.1905368,119700.0,119690.0,0.40813216]
[1759413624022,0.4275768,119700.0,119690.0,0.40813216]
[1759413624222,1.1904568,119700.0,119690.0,0.40813216]
[1759413624822,1.504309,119700.0,119690.0,0.40813216]
[1759413625124,1.49428587,119700.0,119690.0,0.38648216]
[1759413625325,2.25508587,119700.0,119690.0,0.01218216]
[1759413625525,2.57896101,119700.0,119690.0,2.16e-06]
[1759413625825,0.083505,119680.0,119670.0,0.0135]
[1759413626127,1.85489528,119680.0,119670.0,0.0135]
[1759413626419,0.083519,119660.0,119650.0,0.43284994]
[1759413626619,0.39381679,119660.0,119650.0,0.37343]
[1759413626826,1.15665679,119660.0,119650.0,0.37343]
[1759413627020,1.56507359,119660.0,119650.0,0.01263]
[1759413627221,0.083526,119650.0,119640.0,0.43284994]
[1759413627423,0.73127628,119650.0,119640.0,0.07204994]
[1759413627725,0.73127628,119650.0,119640.0,0.01263]
[1759413628221,0.083533,119640.0,119630.0,0.07204994]
[1759413628429,1.09208328,119640.0,119630.0,0.07204994]
[1759413628622,1.85488328,119640.0,119630.0,0.07204994]
[1759413629324,1.85488328,119640.0,119630.0,0.01263]
[1759413629716,1.85488328,119640.0,119630.0,0.02163]
[1759413629921,2.25488328,119640.0,119630.0,0.02163]
[1759413630222,0.0835469,119620.0,119610.0,0.50732469]
[1759413630420,1.19868859,119620.0,119610.0,0.07211174]
[1759413631527,1.26659609,119620.0,119610.0,0.07211174]
[1759413631723,1.66659609,119620.0,119610.0,0.07511174]
[1759413632026,2.02747609,119620.0,119610.0,0.08411174]
[1759413632227,1.95956859,119620.0,119610.0,0.0246918]
[1759413632722,1.95964859,119620.0,119610.0,0.0120618]
[1759413632917,1.19880859,119620.0,119610.0,0.0341418]
[1759413633224,0.43588859,119620.0,119610.0,0.0371418]
[1759413633619,1.26444393,119620.0,119610.0,0.0371418]
[1759413633820,1.26444393,119620.0,119610.0,0.0156918]
[1759413634322,1.26448393,119620.0,119610.0,0.0156918]
[1759413634830,1.62528393,119620.0,119610.0,0.0030618]
[1759413635018,2.02528393,119620.0,119610.0,0.0030618]
[1759413635224,2.02528393,119620.0,119610.0,0.0156918]
[1759413635823,1.26232393,119620.0,119610.0,0.0156918]
[1759413636323,1.62532393,119620.0,119610.0,0.0371418]
[1759413636729,0.50152393,119620.0,119610.0,0.0371418]
[1759413637027,1.26452393,119620.0,119610.0,0.0371418]
[1759413637424,0.14922224,119620.0,119610.0,0.4814956]
[1759413637623,0.76308,119620.0,119610.0,0.89329312]
[1759413637925,0.8466269,119620.0,119610.0,0.89329312]
[1759413638229,0.8466269,119620.0,119610.0,0.89329322]
[1759413638429,0.8466269,119620.0,119610.0,0.80973932]
[1759413638630,0.76308,119620.0,119610.0,0.89329322]
[1759413639129,4e-05,119620.0,119610.0,0.89329322]
[1759413639322,0.76308,119620.0,119610.0,0.89329322]
[1759413639522,0.76308,119620.0,119610.0,0.49329322]
[1759413640123,4e-05,119620.0,119610.0,0.49329322]
[1759413640324,4e-05,119620.0,119610.0,1.24559491]
[1759413640629,0.43582769,119650.0,119640.0,0.03408]
[1759413640825,0.51139247,119660.0,119640.0,0.40667752]
[1759413641027,0.3608,119670.0,119660.0,0.03408]
[1759413641028,0.43581719,119670.0,119660.0,0.03408]
[1759413641328,1.55965719,119670.0,119660.0,0.02442752]
[1759413641719,1.61566193,119670.0,119660.0,0.02442752]
[1759413641925,1.56796362,119670.0,119660.0,0.01179752]
[1759413642124,1.96796362,119670.0,119660.0,0.01179752]
[1759413642926,1.61566193,119670.0,119660.0,0.02442752]
[1759413643122,1.97996362,119670.0,119660.0,0.02442752]
[1759413643327,1.61916362,119670.0,119660.0,0.02442752]
[1759413643530,1.97996362,119670.0,119660.0,0.02442752]
[1759413643929,0.00830643,119670.0,119660.0,0.12939652]
[1759413644136,1.11530169,119670.0,119660.0,0.04587752]
[1759413644338,1.2852416,119670.0,119660.0,0.04587752]
[1759413644634,1.6852416,119670.0,119660.0,0.02442752]
[1759413644830,2.0460416,119670.0,119660.0,0.01179752]
[1759413646436,1.69373991,119670.0,119660.0,0.01179752]
[1759413646735,2.0460416,119670.0,119660.0,0.01179752]
[1759413647436,0.083526,119650.0,119640.0,0.37343]
[1759413647632,1.19878769,119650.0,119640.0,0.38522281]
[1759413648032,1.19878769,119650.0,119640.0,0.02442281]
[1759413648435,0.0835329,119640.0,119630.0,0.37343]
[1759413648734,0.0835399,119630.0,119620.0,0.37343]
[1759413649031,0.0835469,119620.0,119610.0,0.3734918]
[1759413649238,0.42226729,119620.0,119610.0,6.18e-05]
[1759413649440,0.78306729,119620.0,119610.0,6.18e-05]
[1759413649830,0.78306729,119620.0,119600.0,0.3608]
[1759413649831,0.0835539,119610.0,119600.0,0.3608]
[1759413650136,0.0835609,119600.0,119590.0,0.01296]
[1759413650335,0.79666259,119600.0,119590.0,0.01296]
[1759413650730,0.0835679,119590.0,119570.0,0.37376]
[1759413650935,1.19879659,119580.0,119570.0,0.03594]
[1759413651240,1.19885839,119580.0,119570.0,0.01296]
[1759413651432,0.43593839,119580.0,119570.0,0.01296]
[1759413651738,6.18e-05,119580.0,119570.0,0.39674]
[1759413651927,0.77012349,119580.0,119570.0,0.79674]
[1759413652337,0.90689985,119580.0,119570.0,0.79674]
[1759413652935,0.90689985,119580.0,119570.0,0.80574]
[1759413653132,0.40556495,119580.0,119570.0,0.8993219]
[1759413653631,1.16860495,119580.0,119570.0,0.8993219]
[1759413653933,0.7631018,119580.0,119570.0,0.8993219]
[1759413655133,1.16860495,119580.0,119570.0,0.81574]
[1759413655736,1.16860495,119580.0,119570.0,0.41574]
[1759413656236,1.25217985,119580.0,119570.0,0.41574]
[1759413657030,0.40556495,119580.0,119570.0,0.4993219]
[1759413657236,6.18e-05,119580.0,119570.0,0.8993219]
[1759413657445,0.6445818,119580.0,119570.0,0.8993219]
[1759413657642,6.18e-05,119580.0,119570.0,0.8993219]
[1759413657841,0.6445818,119580.0,119570.0,0.8993219]
[1759413659247,1.0364991,119580.0,119570.0,0.8993219]
[1759413659741,0.40550315,119580.0,119570.0,0.8993219]
[1759413659936,1.16862315,119580.0,119570.0,0.8993219]
[1759413660132,0.40550315,119580.0,119570.0,0.8993219]
[1759413660336,1.16862315,119580.0,119570.0,0.8993219]
[1759413660845,0.76312,119580.0,119570.0,0.8993219]
[1759413661047,1.16862315,119580.0,119570.0,0.8993219]
[1759413661844,1.16862315,119580.0,119570.0,0.8868819]
[1759413662341,0.40550315,119580.0,119570.0,0.8868819]
[1759413662645,0.40550315,119600.0,119590.0,0.1195079]
[1759413662845,1.16866315,119600.0,119590.0,0.4803079]
[1759413663143,1.16866315,119600.0,119590.0,0.39674]
[1759413663738,0.09211319,119610.0,119590.0,0.4673479]
[1759413664043,0.0835679,119590.0,119580.0,0.37376]
[1759413664239,0.0835749,119580.0,119570.0,0.39276]
[1759413664546,1.25223805,119580.0,119570.0,0.3798]
[1759413664843,1.25223805,119580.0,119570.0,0.3608]
[1759413665041,1.65223805,119580.0,119560.0,0.37376]
[1759413665349,0.40550315,119570.0,119560.0,0.4573489]
[1759413665544,0.4443722,119590.0,119580.0,0.03594]
[1759413665751,0.43585106,119610.0,119590.0,0.01296]
[1759413666046,1.16866315,119600.0,119590.0,0.096528]
[1759413666248,0.40550315,119600.0,119590.0,0.119508]
[1759413666436,0.51940916,119610.0,119600.0,0.01296]
[1759413666637,0.083568,119590.0,119580.0,0.01296]
[1759413666841,1.6075728,119590.0,119580.0,0.007]
[1759413667638,2.01307595,119590.0,119580.0,0.007]
[1759413668048,0.0835786,119580.0,119560.0,0.4573485]
[1759413668239,1.16902315,119570.0,119560.0,0.4573485]
[1759413668944,1.25260495,119570.0,119560.0,0.37376]
[1759413669249,1.65260495,119570.0,119560.0,0.37376]
[1759413669442,1.72072803,119570.0,119560.0,0.3608]
[1759413669842,1.72072803,119570.0,119560.0,0.3738]
[1759413670245,1.72072803,119570.0,119560.0,0.013]
[1759413670946,2.48703118,119570.0,119560.0,0.013]
[1759413671148,0.083589,119560.0,119550.0,0.01296]
[1759413671348,0.8945953,119560.0,119540.0,0.37376]
[1759413671650,1.16898315,119550.0,119540.0,0.37376]
[1759413671851,1.25257915,119550.0,119540.0,0.37376]
[1759413672050,1.61337915,119550.0,119530.0,0.37376]
[1759413672251,1.61337915,119550.0,119520.0,0.45747887]
[1759413672252,0.08361,119530.0,119520.0,0.00010577]
[1759413672460,0.083617,119520.0,119510.0,0.01296]
[1759413672649,1.24726736,119520.0,119510.0,0.01157914]
[1759413672841,2.01174736,119520.0,119510.0,0.01157914]
[1759413673448,0.0836277,119510.0,119490.0,0.37376]
[1759413673651,1.17038315,119500.0,119490.0,0.480376]
[1759413673851,0.40550315,119500.0,119490.0,0.841176]
[1759413674152,1.17050315,119500.0,119490.0,0.841176]
[1759413674547,1.17050315,119500.0,119490.0,0.8411781]
[1759413674845,1.17066315,119500.0,119490.0,0.8411781]
[1759413675249,0.40550315,119500.0,119490.0,0.8541781]
[1759413675647,0.40550315,119500.0,119490.0,0.8681781]
[1759413675844,1.17066315,119500.0,119490.0,0.8681781]
[1759413676249,1.25425405,119500.0,119490.0,0.78454]
[1759413676451,0.40550315,119500.0,119490.0,0.78454]
[1759413676651,1.17062315,119500.0,119490.0,0.78454]
[1759413676953,0.40550315,119500.0,119490.0,0.8681779]
[1759413677348,1.17062315,119500.0,119490.0,0.8681779]
[1759413677555,1.17062315,119500.0,119490.0,1.2681779]
[1759413678249,0.40550315,119500.0,119490.0,1.2681779]
[1759413678455,0.00010239,119520.0,119510.0,0.1194238]
[1759413678654,0.00010239,119520.0,119510.0,0.4802238]
[1759413678655,1.17084554,119520.0,119510.0,0.4802238]
[1759413678846,1.17084554,119520.0,119510.0,0.37449]
[1759413678847,1.65996559,119520.0,119510.0,0.37449]
[1759413679159,2.06000569,119520.0,119510.0,0.01369]
[1759413679453,2.06000569,119520.0,119500.0,0.37449]
[1759413679454,0.0836238,119510.0,119500.0,0.37449]
[1759413679656,1.25600695,119510.0,119500.0,0.37449]
[1759413680051,0.40550315,119510.0,119500.0,0.4802308]
[1759413680355,0.00010239,119520.0,119510.0,0.0358]
[1759413680652,0.40560554,119520.0,119510.0,0.4802238]
[1759413680846,1.17260554,119520.0,119510.0,0.4802238]
[1759413681046,0.40560554,119520.0,119510.0,0.4872238]
[1759413681247,1.17260554,119520.0,119510.0,0.4872238]
[1759413681758,0.40560554,119520.0,119510.0,0.4802238]
[1759413682056,1.17252554,119520.0,119510.0,0.4882238]
[1759413682952,1.17252554,119520.0,119510.0,0.4882239]
[1759413683257,0.40560554,119520.0,119510.0,0.4046]
[1759413683451,1.25602244,119520.0,119510.0,0.4046]
[1759413684257,1.66152559,119520.0,119510.0,0.38249]
[1759413684751,1.66152559,119520.0,119510.0,0.008]
[1759413684961,0.0836239,119510.0,119500.0,0.3608]
[1759413685153,0.0836308,119500.0,119490.0,0.37376]
[1759413685352,1.25593395,119500.0,119490.0,0.37376]
[1759413685548,1.65601395,119500.0,119490.0,0.37376]
[1759413686357,1.65601395,119500.0,119490.0,0.3608]
[1759413686955,0.48913395,119500.0,119490.0,0.458188]
[1759413687262,1.17222315,119500.0,119490.0,0.490468]
[1759413687467,0.0836295,119510.0,119500.0,0.03603]
[1759413687664,1.25581265,119510.0,119500.0,0.39683]
[1759413688162,0.48913265,119510.0,119500.0,0.39683]
[1759413688361,0.40550315,119510.0,119500.0,0.4804609]
[1759413688560,1.25576705,119510.0,119500.0,0.4804609]
[1759413688760,0.48912705,119510.0,119500.0,0.4804609]
[1759413689060,1.25576735,119510.0,119500.0,0.4804609]
[1759413689262,1.25576735,119510.0,119500.0,0.39683]
[1759413689563,1.25576735,119510.0,119500.0,0.01375]
[1759413689864,0.0836312,119500.0,119490.0,0.4804636]
[1759413690053,0.48913435,119500.0,119490.0,0.4804636]
[1759413690251,0.40550315,119500.0,119490.0,0.4804636]
[1759413690963,0.003,119500.0,119490.0,0.4804636]
[1759413691160,0.00010239,119520.0,119510.0,0.0836242]
[1759413691366,0.49598239,119520.0,119510.0,0.8412542]
[1759413691560,0.00010239,119520.0,119510.0,0.8412542]
[1759413691869,1.17224554,119520.0,119510.0,0.8412542]
[1759413692457,1.17224554,119520.0,119510.0,0.75763]
[1759413692458,0.76674239,119520.0,119510.0,0.75763]
[1759413692651,1.17224554,119520.0,119510.0,0.75763]
[1759413692862,1.17224554,119520.0,119510.0,0.8412542]
[1759413693375,0.76682239,119520.0,119510.0,1.2412542]
[1759413693559,0.76682239,119520.0,119510.0,1.2432542]
[1759413693760,0.76690239,119520.0,119510.0,1.2432542]
[1759413693964,0.76690239,119520.0,119510.0,1.2412542]
[1759413694165,0.00010239,119520.0,119510.0,1.2432542]
[1759413694466,0.76790239,119520.0,119510.0,1.2412542]
[1759413694664,1.17340554,119520.0,119510.0,1.2412542]